fUSD/lending_fUSD_20240421
["ID","MTS","AMOUNT","RATE_DAILY","PERIOD"]
[323097452,1713657614043,258.02517572,0.0001111,2]
[323097453,1713657632081,258.02517572,0.0001111,2]
[323097454,1713657654077,267.52293726,0.0001111,2]
[323097455,1713657691365,150.0,0.0002641,120]
[323097458,1713657871593,150.0,0.00026361,120]
[323097459,1713658050825,150.0,0.00026425,120]
[323097461,1713658145195,-162.89104757,0.00012038,2]
[323097462,1713658145215,-944.77415243,0.00012039,2]
[323097495,1713658232396,-155.0,0.00012038,2]
[323097496,1713658232408,-155.0,0.00012039,2]
[323097497,1713658232417,-617.87,0.0001204,2]
[323097498,1713658232426,-161.98617853,0.00012299,2]
[323097499,1713658232435,-537.58418051,0.00012397,2]
[323097500,1713658232444,-324.27283776,0.000124,2]
[323097501,1713658232453,-194.32946599,0.00012581,2]
[323097502,1713658232462,-155.0,0.00012581,2]
[323097503,1713658232472,-410.32117245,0.00012581,2]
[323097504,1713658232481,-232.15012141,0.00012582,2]
[323097505,1713658232490,-200.0,0.00013699,2]
[323097506,1713658232499,-200.0,0.00013699,2]
[323097507,1713658232507,-198.14292364,0.00013699,2]
[323097508,1713658232519,-1.85707636,0.00013699,2]
[323097509,1713658232528,-200.0,0.00013699,2]
[323097510,1713658232537,-200.0,0.00013699,2]
[323097511,1713658232546,-211.72642339,0.00013786,2]
[323097512,1713658232557,-788.27357661,0.00013786,2]
[323097513,1713658232566,-165.55,0.0001397,2]
[323097514,1713658232575,-150.0,0.0001398,2]
[323097515,1713658232585,-983.23,0.00013992,2]
[323097516,1713658232594,-165.55,0.00014212,2]
[323097517,1713658232603,-617.87,0.00014304,2]
[323097518,1713658232612,-611.32642339,0.00014382,2]
[323097524,1713658232713,-672.51167261,0.00014382,2]
[323097525,1713658232722,-165.55,0.00014455,2]
[323097526,1713658232731,-327.63343049,0.00014604,2]
[323097528,1713658232741,-903.71424401,0.00014656,2]
[323097530,1713658232753,-55.07184837,0.00014656,2]
[323097532,1713658232762,-165.55,0.00014698,2]
[323097534,1713658232772,-162.37,0.00014717,2]
[323097535,1713658232780,-162.37,0.00014724,2]
[323097536,1713658232789,-162.37,0.00014731,2]
[323097537,1713658232798,-162.37,0.00014737,2]
[323097538,1713658232807,-263.69815163,0.00014738,2]
[323097539,1713658232826,-2192.90717348,0.00014738,2]
[323097540,1713658232838,-2123.86993174,0.00014738,2]
[323097541,1713658232847,-426.91985436,0.00014744,2]
[323097542,1713658232856,-162.37,0.00014744,2]
[323097543,1713658232865,-162.37,0.00014751,2]
[323097544,1713658232874,-467.07549417,0.00014752,2]
[323097545,1713658232883,-305.12478277,0.00014752,2]
[323097546,1713658232892,-162.02270693,0.00014752,2]
[323097547,1713658232901,-683.74835302,0.00014752,2]
[323097548,1713658232914,-236.59678776,0.00014752,2]
[323097549,1713658232923,-408.17868454,0.00014752,2]
[323097550,1713658232932,-2358.50142136,0.00014753,2]
[323097551,1713658232941,-55013.30227936,0.00014754,2]
[323097552,1713658232950,-363.11662395,0.00014756,2]
[323097553,1713658232958,-162.37,0.00014758,2]
[323097554,1713658232968,-162.37,0.00014764,2]
[323097555,1713658232977,-162.37,0.00014771,2]
[323097556,1713658232986,-162.37,0.00014778,2]
[323097557,1713658232995,-162.37,0.00014784,2]
[323097558,1713658233005,-162.37,0.00014791,2]
[323097559,1713658233015,-2067.288,0.00015399,2]
[323097560,1713658233025,-1000.0,0.00015399,2]
[323097561,1713658233035,-6545.1193,0.000154,2]
[323097562,1713658233045,-1218.81145628,0.000154,2]
[323097563,1713658233055,-532.4494,0.000154,2]
[323097564,1713658233065,-1160.7978891,0.00015487,2]
[323097565,1713658233075,-500.0,0.00015497,2]
[323097566,1713658233085,-500.0,0.00015497,2]
[323097567,1713658233094,-500.0,0.00015497,2]
[323097568,1713658233103,-500.0,0.00015497,2]
[323097569,1713658233113,-298.57,0.00015498,2]
[323097570,1713658233124,-500.0,0.00015498,2]
[323097571,1713658233134,-500.0,0.00015498,2]
[323097572,1713658233143,-174.69,0.00015498,2]
[323097573,1713658233155,-356.45,0.00015498,2]
[323097574,1713658233164,-500.0,0.00015498,2]
[323097575,1713658233172,-500.0,0.00015498,2]
[323097576,1713658233181,-500.0,0.00015498,2]
[323097577,1713658233191,-500.0,0.00015498,2]
[323097578,1713658233201,-500.0,0.00015498,2]
[323097579,1713658233210,-500.0,0.00015498,2]
[323097580,1713658233219,-468.86,0.00015498,2]
[323097581,1713658233229,-505.76898987,0.00015498,2]
[323097582,1713658233238,-500.0,0.00015498,2]
[323097583,1713658233247,-500.0,0.00015498,2]
[323097584,1713658233258,-500.0,0.00015498,2]
[323097585,1713658233268,-500.0,0.00015498,2]
[323097586,1713658233277,-2080.07,0.00015498,2]
[323097587,1713658233289,-2467.92,0.00015498,2]
[323097588,1713658233298,-7149.09,0.00015498,2]
[323097589,1713658233307,-1724.71,0.00015498,2]
[323097590,1713658233318,-500.0,0.00015498,2]
[323097591,1713658233329,-500.0,0.00015498,2]
[323097592,1713658233340,-548.89,0.00015498,2]
[323097593,1713658233349,-1025.29,0.00015498,2]
[323097594,1713658233360,-500.0,0.00015498,2]
[323097595,1713658233369,-1808.34,0.00015498,2]
[323097596,1713658233378,-500.0,0.00015498,2]
[323097597,1713658233387,-500.0,0.00015498,2]
[323097598,1713658233397,-1243.72553608,0.00015499,2]
[323097599,1713658233408,-281.70031825,0.00015499,2]
[323097600,1713658233417,-500.0,0.00015499,2]
[323097601,1713658233426,-500.0,0.00015499,2]
[323097602,1713658233435,-500.0,0.00015499,2]
[323097603,1713658233444,-500.0,0.00015499,2]
[323097604,1713658233455,-500.0,0.00015499,2]
[323097605,1713658233464,-500.0,0.00015499,2]
[323097606,1713658233473,-997.6,0.00015499,2]
[323097607,1713658233484,-500.0,0.00015499,2]
[323097608,1713658233494,-500.0,0.00015499,2]
[323097609,1713658233503,-500.0,0.00015499,2]
[323097610,1713658233514,-500.0,0.00015499,2]
[323097611,1713658233523,-500.0,0.00015499,2]
[323097612,1713658233532,-500.0,0.00015499,2]
[323097613,1713658233543,-785.27,0.00015499,2]
[323097614,1713658233552,-500.0,0.00015499,2]
[323097615,1713658233562,-500.0,0.00015499,2]
[323097616,1713658233571,-500.0,0.00015499,2]
[323097617,1713658233580,-1307.77,0.00015499,2]
[323097618,1713658233591,-500.0,0.00015499,2]
[323097619,1713658233602,-560.52,0.00015499,2]
[323097620,1713658233611,-500.0,0.00015499,2]
[323097621,1713658233622,-500.0,0.00015499,2]
[323097622,1713658233630,-500.0,0.00015499,2]
[323097623,1713658233639,-500.0,0.00015499,2]
[323097624,1713658233650,-500.0,0.00015499,2]
[323097625,1713658233663,-500.0,0.00015499,2]
[323097626,1713658233673,-500.0,0.00015499,2]
[323097627,1713658233681,-500.0,0.00015499,2]
[323097628,1713658233690,-500.0,0.00015499,2]
[323097629,1713658233700,-500.0,0.00015499,2]
[323097630,1713658233711,-594.78,0.00015499,2]
[323097631,1713658233721,-500.0,0.00015499,2]
[323097632,1713658233730,-500.0,0.00015499,2]
[323097633,1713658233741,-500.0,0.00015499,2]
[323097634,1713658233751,-500.0,0.00015499,2]
[323097635,1713658233762,-500.0,0.00015499,2]
[323097636,1713658233773,-500.0,0.00015499,2]
[323097637,1713658233782,-500.0,0.00015499,2]
[323097638,1713658233792,-500.0,0.00015499,2]
[323097639,1713658233802,-500.0,0.00015499,2]
[323097640,1713658233812,-500.0,0.00015499,2]
[323097641,1713658233820,-500.0,0.00015499,2]
[323097642,1713658233830,-618.35,0.00015499,2]
[323097643,1713658233842,-502.10752393,0.00015499,2]
[323097644,1713658233851,-500.0,0.00015499,2]
[323097645,1713658233860,-500.0,0.00015499,2]
[323097646,1713658233869,-500.0,0.00015499,2]
[323097647,1713658233879,-500.0,0.00015499,2]
[323097648,1713658233889,-500.0,0.00015499,2]
[323097649,1713658233898,-500.0,0.00015499,2]
[323097650,1713658233909,-530.10278,0.00015499,2]
[323097651,1713658233920,-500.0,0.00015499,2]
[323097652,1713658233929,-500.0,0.00015499,2]
[323097653,1713658233939,-500.0,0.00015499,2]
[323097654,1713658233949,-500.0,0.00015499,2]
[323097655,1713658233958,-500.0,0.00015499,2]
[323097656,1713658233968,-500.0,0.00015499,2]
[323097657,1713658233977,-500.0,0.00015499,2]
[323097658,1713658233986,-500.0,0.00015499,2]
[323097659,1713658233995,-500.0,0.00015499,2]
[323097660,1713658234004,-500.0,0.00015499,2]
[323097661,1713658234014,-500.0,0.00015499,2]
[323097662,1713658234023,-500.0,0.00015499,2]
[323097663,1713658234033,-500.0,0.00015499,2]
[323097664,1713658234042,-500.0,0.00015499,2]
[323097665,1713658234051,-500.0,0.00015499,2]
[323097666,1713658234061,-500.0,0.00015499,2]
[323097667,1713658234070,-500.0,0.00015499,2]
[323097668,1713658234079,-500.0,0.00015499,2]
[323097669,1713658234089,-500.0,0.00015499,2]
[323097670,1713658234098,-500.0,0.00015499,2]
[323097671,1713658234107,-500.0,0.00015499,2]
[323097672,1713658234116,-500.0,0.00015499,2]
[323097673,1713658234126,-500.0,0.00015499,2]
[323097674,1713658234136,-500.0,0.00015499,2]
[323097675,1713658234145,-500.0,0.00015499,2]
[323097676,1713658234155,-500.0,0.00015499,2]
[323097677,1713658234164,-500.0,0.00015499,2]
[323097678,1713658234174,-500.0,0.00015499,2]
[323097679,1713658234183,-500.0,0.00015499,2]
[323097680,1713658234192,-500.0,0.00015499,2]
[323097681,1713658234201,-500.0,0.00015499,2]
[323097682,1713658234211,-500.0,0.00015499,2]
[323097683,1713658234220,-500.0,0.00015499,2]
[323097684,1713658234229,-500.0,0.00015499,2]
[323097685,1713658234239,-500.0,0.00015499,2]
[323097686,1713658234248,-500.0,0.00015499,2]
[323097687,1713658234257,-500.0,0.00015499,2]
[323097688,1713658234267,-500.0,0.00015499,2]
[323097689,1713658234276,-500.0,0.00015499,2]
[323097690,1713658234286,-500.0,0.00015499,2]
[323097691,1713658234296,-265.17,0.00015499,2]
[323097692,1713658234306,-500.0,0.00015499,2]
[323097693,1713658234316,-205.98,0.00015499,2]
[323097694,1713658234325,-500.0,0.00015499,2]
[323097695,1713658234334,-500.0,0.00015499,2]
[323097696,1713658234344,-500.0,0.00015499,2]
[323097697,1713658234353,-500.0,0.00015499,2]
[323097698,1713658234363,-541.52,0.00015499,2]
[323097699,1713658234372,-500.0,0.00015499,2]
[323097700,1713658234382,-571.95,0.00015499,2]
[323097701,1713658234391,-500.0,0.00015499,2]
[323097702,1713658234401,-500.0,0.00015499,2]
[323097703,1713658234412,-500.0,0.00015499,2]
[323097704,1713658234422,-580.45,0.00015499,2]
[323097705,1713658234431,-500.0,0.00015499,2]
[323097706,1713658234441,-628.54,0.00015499,2]
[323097707,1713658234450,-500.0,0.00015499,2]
[323097708,1713658234459,-500.0,0.00015499,2]
[323097709,1713658234468,-500.0,0.00015499,2]
[323097710,1713658234477,-469.69,0.00015499,2]
[323097711,1713658234486,-500.0,0.00015499,2]
[323097712,1713658234495,-342.78,0.00015499,2]
[323097713,1713658234504,-178.41,0.00015499,2]
[323097714,1713658234513,-1907.73,0.00015499,2]
[323097715,1713658234523,-356.98,0.00015499,2]
[323097716,1713658234532,-167.62,0.00015499,2]
[323097717,1713658234541,-500.0,0.00015499,2]
[323097718,1713658234550,-500.0,0.00015499,2]
[323097719,1713658234560,-156.93,0.00015499,2]
[323097720,1713658234569,-500.0,0.00015499,2]
[323097721,1713658234578,-500.0,0.00015499,2]
[323097722,1713658234587,-500.0,0.00015499,2]
[323097723,1713658234596,-500.0,0.00015499,2]
[323097724,1713658234605,-500.0,0.00015499,2]
[323097725,1713658234614,-557.1,0.00015499,2]
[323097726,1713658234623,-500.0,0.00015499,2]
[323097727,1713658234632,-386.5,0.00015499,2]
[323097728,1713658234642,-500.0,0.00015499,2]
[323097729,1713658234651,-500.0,0.00015499,2]
[323097730,1713658234663,-500.0,0.00015499,2]
[323097731,1713658234672,-500.0,0.00015499,2]
[323097732,1713658234681,-500.0,0.00015499,2]
[323097733,1713658234690,-583.41,0.00015499,2]
[323097734,1713658234700,-500.0,0.00015499,2]
[323097735,1713658234709,-500.0,0.00015499,2]
[323097736,1713658234718,-500.0,0.00015499,2]
[323097737,1713658234727,-501.10811285,0.00015499,2]
[323097738,1713658234736,-500.0,0.00015499,2]
[323097739,1713658234746,-500.0,0.00015499,2]
[323097740,1713658234755,-500.90898163,0.00015499,2]
[323097741,1713658234765,-500.0,0.00015499,2]
[323097742,1713658234774,-500.0,0.00015499,2]
[323097743,1713658234783,-515.05881889,0.00015499,2]
[323097744,1713658234792,-500.0,0.00015499,2]
[323097745,1713658234801,-502.64913341,0.00015499,2]
[323097746,1713658234810,-500.0,0.00015499,2]
[323097747,1713658234820,-500.0,0.00015499,2]
[323097748,1713658234829,-178.85021942,0.00015499,2]
[323097749,1713658234839,-500.0,0.00015499,2]
[323097750,1713658234848,-161.35,0.00015499,2]
[323097751,1713658234857,-339.69,0.00015499,2]
[323097752,1713658234867,-500.0,0.00015499,2]
[323097753,1713658234876,-500.0,0.00015499,2]
[323097754,1713658234885,-500.0,0.00015499,2]
[323097755,1713658234895,-500.0,0.00015499,2]
[323097756,1713658234905,-500.0,0.00015499,2]
[323097757,1713658234914,-500.0,0.00015499,2]
[323097758,1713658234923,-500.0,0.00015499,2]
[323097759,1713658234932,-500.0,0.00015499,2]
[323097760,1713658234941,-500.0,0.00015499,2]
[323097761,1713658234951,-253.28,0.00015499,2]
[323097762,1713658234960,-500.0,0.00015499,2]
[323097763,1713658234969,-500.0,0.00015499,2]
[323097764,1713658234978,-501.56672371,0.00015499,2]
[323097765,1713658234988,-500.0,0.00015499,2]
[323097766,1713658234997,-501.47025714,0.00015499,2]
[323097767,1713658235006,-504.98,0.00015499,2]
[323097768,1713658235016,-500.0,0.00015499,2]
[323097769,1713658235026,-500.0,0.00015499,2]
[323097770,1713658235036,-500.0,0.00015499,2]
[323097771,1713658235045,-500.0,0.00015499,2]
[323097772,1713658235055,-500.0,0.00015499,2]
[323097773,1713658235065,-500.0,0.00015499,2]
[323097774,1713658235075,-500.0,0.00015499,2]
[323097775,1713658235085,-500.0,0.00015499,2]
[323097776,1713658235096,-453.04,0.00015499,2]
[323097777,1713658235105,-549.22914293,0.00015499,2]
[323097778,1713658235115,-500.0,0.00015499,2]
[323097779,1713658235125,-500.0,0.00015499,2]
[323097780,1713658235134,-500.0,0.00015499,2]
[323097781,1713658235144,-500.0,0.00015499,2]
[323097782,1713658235155,-500.0,0.00015499,2]
[323097783,1713658235165,-501.64,0.00015499,2]
[323097784,1713658235175,-500.0,0.00015499,2]
[323097785,1713658235185,-500.0,0.00015499,2]
[323097786,1713658235195,-500.0,0.00015499,2]
[323097787,1713658235204,-800.4,0.00015499,2]
[323097788,1713658235214,-500.0,0.00015499,2]
[323097789,1713658235223,-500.0,0.00015499,2]
[323097790,1713658235233,-728.4,0.00015499,2]
[323097791,1713658235243,-2629.83,0.00015499,2]
[323097792,1713658235253,-2325.92,0.00015499,2]
[323097793,1713658235262,-500.0,0.00015499,2]
[323097794,1713658235445,-1387.37,0.00015499,2]
[323097795,1713658235476,-859.45,0.00015499,2]
[323097796,1713658235486,-500.0,0.00015499,2]
[323097797,1713658235496,-276.72,0.00015499,2]
[323097798,1713658235505,-500.0,0.00015499,2]
[323097799,1713658235515,-863.55,0.00015499,2]
[323097800,1713658235524,-500.0,0.00015499,2]
[323097801,1713658235534,-530.88,0.00015499,2]
[323097802,1713658235543,-500.0,0.00015499,2]
[323097803,1713658235552,-1183.82,0.00015499,2]
[323097804,1713658235561,-500.0,0.00015499,2]
[323097805,1713658235570,-500.0,0.00015499,2]
[323097806,1713658235579,-653.09,0.00015499,2]
[323097807,1713658235588,-597.27,0.00015499,2]
[323097808,1713658235598,-500.0,0.00015499,2]
[323097809,1713658235607,-500.0,0.00015499,2]
[323097810,1713658235616,-500.0,0.00015499,2]
[323097811,1713658235625,-500.0,0.00015499,2]
[323097812,1713658235635,-594.68,0.00015499,2]
[323097813,1713658235645,-1541.14,0.00015499,2]
[323097814,1713658235654,-3553.94,0.00015499,2]
[323097815,1713658235669,-676.65,0.00015499,2]
[323097816,1713658235679,-333.63,0.00015499,2]
[323097817,1713658235688,-500.0,0.00015499,2]
[323097818,1713658235698,-695.14,0.00015499,2]
[323097819,1713658235708,-500.0,0.00015499,2]
[323097820,1713658235718,-500.0,0.00015499,2]
[323097821,1713658235727,-500.0,0.00015499,2]
[323097822,1713658235738,-4494.39,0.00015499,2]
[323097823,1713658235748,-500.0,0.00015499,2]
[323097824,1713658235758,-453.67,0.00015499,2]
[323097825,1713658235768,-903.96,0.00015499,2]
[323097826,1713658235777,-635.66,0.00015499,2]
[323097827,1713658235787,-500.0,0.00015499,2]
[323097828,1713658235796,-606.72,0.00015499,2]
[323097829,1713658235806,-500.0,0.00015499,2]
[323097830,1713658235815,-500.0,0.00015499,2]
[323097831,1713658235825,-1075.7,0.00015499,2]
[323097832,1713658235834,-300.19,0.00015499,2]
[323097833,1713658235844,-298.26,0.00015499,2]
[323097834,1713658235853,-500.0,0.00015499,2]
[323097835,1713658235863,-500.0,0.00015499,2]
[323097836,1713658235872,-500.0,0.00015499,2]
[323097837,1713658235881,-281.65,0.00015499,2]
[323097838,1713658235891,-500.0,0.00015499,2]
[323097839,1713658235900,-500.0,0.00015499,2]
[323097840,1713658235912,-500.0,0.00015499,2]
[323097841,1713658235922,-500.0,0.00015499,2]
[323097842,1713658235932,-500.0,0.00015499,2]
[323097843,1713658235942,-500.0,0.00015499,2]
[323097844,1713658235952,-500.0,0.00015499,2]
[323097845,1713658235962,-500.0,0.00015499,2]
[323097846,1713658235971,-500.0,0.00015499,2]
[323097847,1713658235981,-500.0,0.00015499,2]
[323097848,1713658235991,-500.0,0.00015499,2]
[323097849,1713658236008,-500.0,0.00015499,2]
[323097850,1713658236017,-500.0,0.00015499,2]
[323097851,1713658236027,-555.37,0.00015499,2]
[323097852,1713658236037,-214.65,0.00015499,2]
[323097853,1713658236047,-500.0,0.00015499,2]
[323097854,1713658236057,-500.0,0.00015499,2]
[323097855,1713658236066,-949.52,0.00015499,2]
[323097856,1713658236077,-500.0,0.00015499,2]
[323097857,1713658236086,-540.41,0.00015499,2]
[323097858,1713658236096,-500.0,0.00015499,2]
[323097859,1713658236105,-500.0,0.00015499,2]
[323097860,1713658236115,-306.3710948,0.00015499,2]
[323097861,1713658236124,-1276.33,0.00015499,2]
[323097862,1713658236134,-500.0,0.00015499,2]
[323097863,1713658236144,-500.0,0.00015499,2]
[323097864,1713658236153,-500.0,0.00015499,2]
[323097865,1713658236164,-500.0,0.00015499,2]
[323097866,1713658236174,-500.0,0.00015499,2]
[323097867,1713658236183,-22758.96318468,0.000155,2]
[323097868,1713658236426,-11631.87808505,0.000155,2]
[323097878,1713658238476,-712.29463692,0.00013752,2]
[323097879,1713658238489,-327.88536308,0.00013752,2]
[323097880,1713658238498,-252.90630564,0.00015498,2]
[323097881,1713658238510,-247.09369436,0.00015498,2]
[323097882,1713658238519,-1433.61393907,0.000155,2]
[323097883,1713658238585,-7094.60000001,0.000155,2]
[323097884,1713658238638,-6414.25897463,0.000155,2]
[323097885,1713658238852,-1121.23242206,0.000155,2]
[323097937,1713658240433,-500.0,0.00015499,2]
[323097938,1713658240443,-104.57016637,0.00015499,2]
[323097939,1713658240455,-250.13277065,0.00015499,2]
[323097940,1713658240467,-179.92706298,0.00015499,2]
[323097941,1713658240476,-500.0,0.00015499,2]
[323097942,1713658240485,-20192.29905989,0.000155,2]
[323097943,1713658240541,-6137.17059908,0.000155,2]
[323097944,1713658240755,-4076.71947898,0.000155,2]
[323097945,1713658240766,-1766.78117,0.000155,2]
[323097946,1713658240778,-64383.25866155,0.000155,2]
[323097947,1713658240790,-27510.96930777,0.000155,2]
[323097948,1713658240801,-1668.29280185,0.000155,2]
[323097949,1713658240812,-32012.5833153,0.000155,2]
[323097950,1713658240824,-4677.57268814,0.000155,2]
[323097967,1713658243431,-1710.03801389,0.000154,2]
[323097968,1713658243441,-500.0,0.00015498,2]
[323097969,1713658243451,-6992.26365039,0.000155,2]
[323097970,1713658243460,-647.97418161,0.000155,2]
[323097971,1713658243470,-4443.75999078,0.000155,2]
[323097972,1713658243479,-343.85766626,0.000155,2]
[323097973,1713658243490,-482.0,0.000155,2]
[323097974,1713658243500,-151.0,0.000155,2]
[323097975,1713658243509,-151.0,0.000155,2]
[323097976,1713658243519,-151.0,0.000155,2]
[323097977,1713658243529,-204.745344,0.000155,2]
[323097978,1713658243538,-151.0,0.000155,2]
[323097979,1713658243548,-151.0,0.000155,2]
[323097980,1713658243558,-151.0,0.000155,2]
[323097981,1713658243568,-151.0,0.000155,2]
[323097982,1713658243578,-749.12159,0.000155,2]
[323097983,1713658243590,-151.0,0.000155,2]
[323097984,1713658243601,-267.320461,0.000155,2]
[323097985,1713658243612,-151.0,0.000155,2]
[323097986,1713658243622,-267.320461,0.000155,2]
[323097987,1713658243632,-151.0,0.000155,2]
[323097988,1713658243641,-1000.0,0.00015509,2]
[323097989,1713658243651,-1454.79886563,0.00015649,2]
[323097990,1713658243665,-192.12009552,0.00015673,2]
[323097991,1713658243674,-151.0,0.00015771,2]
[323097992,1713658243683,-151.0,0.00015771,2]
[323097993,1713658243692,-151.0,0.00015771,2]
[323097994,1713658243701,-151.0,0.00015771,2]
[323097995,1713658243709,-151.0,0.00015771,2]
[323097996,1713658243718,-500.0,0.00015771,2]
[323097997,1713658243730,-225.33,0.00015772,2]
[323097998,1713658243742,-219.1,0.00015772,2]
[323097999,1713658243754,-241.5,0.00015772,2]
[323098000,1713658243766,-500.0,0.00015772,2]
[323098001,1713658243777,-500.0,0.00015772,2]
[323098002,1713658243788,-500.0,0.00015772,2]
[323098003,1713658243798,-500.0,0.00015772,2]
[323098004,1713658243808,-500.0,0.00015772,2]
[323098005,1713658243818,-500.0,0.00015772,2]
[323098006,1713658243828,-500.0,0.00015772,2]
[323098007,1713658243838,-500.0,0.00015772,2]
[323098008,1713658243847,-2080.07,0.00015772,2]
[323098009,1713658243857,-2467.92,0.00015772,2]
[323098010,1713658243866,-7149.09,0.00015772,2]
[323098011,1713658243875,-1724.71,0.00015772,2]
[323098012,1713658243884,-500.0,0.00015772,2]
[323098013,1713658243894,-500.0,0.00015772,2]
[323098014,1713658243903,-548.89,0.00015772,2]
[323098015,1713658243912,-1025.29,0.00015772,2]
[323098016,1713658243923,-500.0,0.00015772,2]
[323098017,1713658243933,-1808.34,0.00015772,2]
[323098018,1713658243944,-500.0,0.00015772,2]
[323098019,1713658243953,-500.0,0.00015772,2]
[323098020,1713658243963,-500.0,0.00015772,2]
[323098021,1713658243973,-500.0,0.00015772,2]
[323098022,1713658243983,-165.88,0.00015773,2]
[323098023,1713658243993,-500.0,0.00015773,2]
[323098024,1713658244002,-552.08,0.00015773,2]
[323098025,1713658244012,-997.6,0.00015773,2]
[323098026,1713658244022,-500.0,0.00015773,2]
[323098027,1713658244031,-398.01,0.00015773,2]
[323098028,1713658244040,-500.0,0.00015773,2]
[323098029,1713658244050,-500.0,0.00015773,2]
[323098030,1713658244059,-502.96,0.00015773,2]
[323098031,1713658244069,-785.27,0.00015773,2]
[323098032,1713658244078,-500.0,0.00015773,2]
[323098033,1713658244088,-500.0,0.00015773,2]
[323098034,1713658244097,-500.0,0.00015773,2]
[323098035,1713658244106,-500.0,0.00015773,2]
[323098036,1713658244116,-502.52,0.00015773,2]
[323098037,1713658244125,-500.0,0.00015773,2]
[323098038,1713658244134,-500.0,0.00015773,2]
[323098039,1713658244144,-632.62,0.00015773,2]
[323098040,1713658244153,-500.0,0.00015773,2]
[323098041,1713658244163,-501.93,0.00015773,2]
[323098042,1713658244172,-296.71,0.00015773,2]
[323098043,1713658244182,-497.77,0.00015773,2]
[323098044,1713658244191,-300.49,0.00015773,2]
[323098045,1713658244201,-643.01,0.00015773,2]
[323098046,1713658244210,-213.49,0.00015773,2]
[323098047,1713658244220,-500.0,0.00015773,2]
[323098048,1713658244229,-612.67,0.00015773,2]
[323098049,1713658244239,-500.0,0.00015773,2]
[323098050,1713658244248,-500.0,0.00015773,2]
[323098051,1713658244258,-500.0,0.00015773,2]
[323098052,1713658244268,-648.38,0.00015773,2]
[323098053,1713658244278,-500.0,0.00015773,2]
[323098054,1713658244288,-500.0,0.00015773,2]
[323098055,1713658244298,-500.0,0.00015773,2]
[323098056,1713658244310,-500.0,0.00015773,2]
[323098057,1713658244319,-500.0,0.00015773,2]
[323098058,1713658244329,-500.0,0.00015773,2]
[323098059,1713658244338,-500.0,0.00015773,2]
[323098060,1713658244347,-500.0,0.00015773,2]
[323098061,1713658244357,-500.0,0.00015773,2]
[323098062,1713658244366,-500.0,0.00015773,2]
[323098063,1713658244376,-500.0,0.00015773,2]
[323098064,1713658244385,-500.0,0.00015773,2]
[323098065,1713658244395,-500.0,0.00015773,2]
[323098066,1713658244404,-500.0,0.00015773,2]
[323098067,1713658244414,-500.0,0.00015773,2]
[323098068,1713658244422,-151.0,0.00015773,2]
[323098069,1713658244431,-500.0,0.00015773,2]
[323098070,1713658244440,-500.0,0.00015773,2]
[323098071,1713658244450,-500.0,0.00015773,2]